[Event "FIDE WY-U16 Olympiad 2022"]
[Site "Nakhchivan"]
[Date "2022.10.03"]
[Round "2.19"]
[White "Amilal Munkhdalai"]
[Black "Ozkan, Taha"]
[Result "1-0"]
[ECO "C07"]
[WhiteElo "2137"]
[BlackElo "2299"]
[PlyCount "104"]
[EventDate "2022.10.02"]
[EventType "team-tourn"]
[EventCountry "AZE"]
[TimeControl "40/5400+30:1800+30"]

1. e4 {[%emt 0:00:02]} e6 {[%emt 0:00:07]} 2. d4 {[%emt 0:00:03]} d5 {[%emt 0:00:04]} 3. Nd2 {[%emt 0:00:05]} c5 {[%emt 0:00:04]} 4. dxc5 {[%emt 0:00:06]} Bxc5 {[%emt 0:00:07]} 5. exd5 {[%emt 0:00:06]} Qxd5 {[%emt 0:00:20]} ({Don't do} 5... Qf6 6. Bb5+ Bd7 7. Bxd7+ (7. Ne4 Qe5 $11) 7... Nxd7 8. Qe2 $16) 6. Ngf3 {[%emt 0:00:10]} Nf6 {[%emt 0:00:04]} 7. Bc4 {[%emt 0:00:11]} Qd8 {[%emt 0:00:17]} 8. Qe2 {[%emt 0:00:15]} Nc6 {[%emt 0:00:37]} 9. O-O {[%emt 0:00:46]} O-O {[%emt 0:00:29]} 10. Ne4 {[%emt 0:01:13]} Be7 {[%emt 0:01:05]} 11. Bg5 {[%emt 0:07:54]} Nxe4 {[%emt 0:04:50]} 12. Bxe7 {[%emt 0:00:10]} Qxe7 {[%emt 0:00:04]} 13. Qxe4 {[%emt 0:00:06]} Rd8 {[%emt 0:02:54]} 14. Rfd1 {[%emt 0:04:43]} Bd7 {[%emt 0:00:47]} 15. Bd3 {[%emt 0:05:53]} g6 {[%emt 0:01:20]} 16. h4 {[%emt 0:03:43]} e5 {[%emt 0:04:46]} 17. Bb5 $11 {[%emt 0:16:30]} Bf5 {[%emt 0:12:01]} 18. Qe2 {[%emt 0:04:05]} e4 {[%emt 0:05:48]} 19. Bxc6 {[%emt 0:00:10]} bxc6 {[%emt 0:00:07]} 20. Nd4 {[%emt 0:00:16]} Bd7 {[%emt 0:02:13]} 21. Re1 {[%emt 0:02:40]} Re8 {[%emt 0:03:56]} 22. h5 {[%emt 0:02:09]} Rab8 {[%emt 0:14:05]} 23. hxg6 {[%emt 0:00:31]} hxg6 {[%emt 0:00:08]} 24. c3 {[%emt 0:04:42]} Qg5 {[%emt 0:01:53]} 25. b4 {[%emt 0:06:37]} c5 {[%emt 0:09:04]} 26. bxc5 {[%emt 0:00:40]} Qxc5 {[%emt 0:00:19]} 27. Qd2 {[%emt 0:00:44]} Qa3 {[%emt 0:05:13]} 28. Rab1 {[%emt 0:01:09]} Rbd8 {[%emt 0:06:45]} 29. Rb3 {[%emt 0:01:42]} Qa4 {[%emt 0:01:09]} 30. Qb2 {[%emt 0:01:27]} Qc4 {[%emt 0:04:01]} 31. Re3 {[%emt 0:00:47]} Be6 {[%emt 0:02:34]} 32. a3 {[%emt 0:08:45]} Qa4 {[%emt 0:01:36]} 33. Rb5 {[%emt 0:04:56]} Qd1+ {[%emt 0:02:55]} 34. Kh2 {[%emt 0:00:04]} Qg4 {[%emt 0:03:28]} 35. Qb1 {[%emt 0:05:34]} Qh4+ {[%emt 0:02:51]} 36. Kg1 {[%emt 0:00:11]} Bc4 {[%emt 0:00:26]} 37. Rb7 {[%emt 0:01:23]} Qf4 {[%emt 0:03:25]} 38. Qb4 {[%emt 0:03:04]} Bd3 {[%emt 0:03:17]} 39. Nc6 {[%emt 0:05:04]} Rd6 {[%emt 0:00:55]} 40. Rb8 {[%emt 0:00:51]} Rde6 {[%emt 0:00:24]} 41. Rxe8+ {[%emt 0:30:19]} Rxe8 {[%emt 0:30:03]} 42. Qd4 {[%emt 0:02:03]} Re6 {[%emt 0:03:58]} 43. Ne7+ {[%emt 0:00:30]} Rxe7 {[%emt 0:00:56]} 44. Qd8+ {[%emt 0:00:11]} Kg7 {[%emt 0:00:04]} 45. Qxe7 {[%emt 0:00:23]} a6 {[%emt 0:00:16]} 46. Qb4 {[%emt 0:00:26]} Qf6 {[%emt 0:01:10]} 47. Qd4 {[%emt 0:01:18]} Qxd4 {[%emt 0:00:08]} 48. cxd4 {[%emt 0:00:04]} f5 {[%emt 0:00:31]} 49. f3 {[%emt 0:00:48]} Kf6 {[%emt 0:00:40]} 50. Kf2 {[%emt 0:00:25]} Ke6 {[%emt 0:00:39]} 51. Rxd3 {[%emt 0:00:59]} exd3 {[%emt 0:00:05]} 52. Ke3 {[%emt 0:00:02]} Kd5 1-0

[Event "FIDE WY-U16 Olympiad 2022"]
[Site "Nakhchivan"]
[Date "2022.10.03"]
[Round "2.19"]
[White "Castillo Beitia, Ashley Alexandra"]
[Black "Han, Xuqian Ben"]
[Result "1-0"]
[ECO "E87"]
[WhiteElo "1674"]
[BlackElo "1610"]
[Annotator "NA RC COMBH"]
[PlyCount "83"]
[EventDate "2022.10.02"]
[EventType "team-tourn"]
[EventCountry "AZE"]
[SourceTitle "playchess.com"]
[Source "ChessBase"]
[SourceQuality "1"]
[WhiteTeam "Panama"]
[BlackTeam "Hong Kong"]
[WhiteTeamCountry "PAN"]
[BlackTeamCountry "HKG"]
[TimeControl "40/5400+30:1800+30"]

1. d4 {[%emt 0:00:03]} Nf6 {[%emt 0:00:06]} 2. c4 {[%emt 0:00:07]} g6 {[%emt 0:00:06]} 3. Nc3 {[%emt 0:00:05]} Bg7 {[%emt 0:00:04]} 4. e4 {[%emt 0:00:06]} d6 {[%emt 0:00:03]} 5. f3 {[%emt 0:00:09]} O-O {[%emt 0:00:04]} 6. Be3 {[%emt 0:00:16]} e5 {[%emt 0:00:14]} 7. d5 {[%emt 0:00:09]} Nh5 {[%emt 0:00:14]} 8. Qd2 {[%emt 0:07:49]} f5 {[%emt 0:00:45]} 9. Bd3 {[%emt 0:01:52]} Nd7 {[%emt 0:20:38]} 10. Nge2 {[%emt 0:08:19]} Nc5 {[%emt 0:05:04]} 11. Bc2 {[%emt 0:02:43]} a6 {[%emt 0:21:21]} 12. b4 {[%emt 0:10:28]} Nd7 {[%emt 0:01:24]} 13. exf5 {[%emt 0:12:30]} gxf5 {[%emt 0:00:45]} 14. O-O-O {[%emt 0:01:34]} Ndf6 {[%emt 0:08:39]} 15. Rdg1 {[%emt 0:07:47]} b5 {[%emt 0:01:47]} 16. Bg5 {[%emt 0:06:32]} bxc4 {[%emt 0:03:38]} 17. g4 {[%emt 0:00:39]} fxg4 {[%emt 0:00:42]} 18. fxg4 {[%emt 0:00:11]} Nf4 {[%emt 0:00:41]} 19. Nxf4 {[%emt 0:01:24]} exf4 {[%emt 0:00:04]} 20. Qxf4 {[%emt 0:09:17]} Nxg4 {[%emt 0:10:02]} 21. Qxg4 {[%emt 0:06:31]} Bxg4 {[%emt 0:00:26]} 22. Bxd8 {[%emt 0:00:14]} Bf3 {[%emt 0:00:15]} 23. Rxg7+ {[%emt 0:02:17]} Kxg7 {[%emt 0:00:26]} 24. Rg1+ {[%emt 0:00:06]} Kh8 {[%emt 0:01:11]} 25. Bxc7 {[%emt 0:00:51]} Rf6 {[%emt 0:03:05]} 26. Rg3 {[%emt 0:04:06]} Rg8 {[%emt 0:03:31]} 27. Bxd6 {[%emt 0:01:48]} Rxd6 {[%emt 0:02:25]} 28. Rxf3 {[%emt 0:00:08]} Rg1+ {[%emt 0:00:40]} 29. Kb2 {[%emt 0:00:06]} Rg2 {[%emt 0:00:40]} 30. Rh3 {[%emt 0:02:23]} h6 {[%emt 0:02:00]} 31. Rh5 {[%emt 0:01:54]} Rf6 {[%emt 0:00:36]} 32. Ne4 {[%emt 0:01:15]} Rf1 {[%emt 0:03:45]} 33. Rxh6+ {[%emt 0:01:13]} Kg7 {[%emt 0:00:11]} 34. Rc6 {[%emt 0:01:35]} Rd1 {[%emt 0:00:50]} 35. d6 {[%emt 0:00:48]} Rd4 {[%emt 0:01:02]} 36. Kc3 {[%emt 0:00:48]} Rd5 {[%emt 0:01:35]} 37. Kxc4 {[%emt 0:01:53]} Re5 {[%emt 0:00:45]} 38. Kd4 {[%emt 0:00:30]} Re8 {[%emt 0:00:28]} 39. Rc7+ {[%emt 0:00:24]} Kf8 {[%emt 0:00:40]} 40. Bb3 {[%emt 0:00:53]} Rb2 {[%emt 0:00:42]} 41. Rf7+ {[%emt 0:30:12]} Kg8 {[%emt 0:30:04]} 42. Nf6+ {[%emt 0:00:04]} 1-0

[Event "FIDE WY-U16 Olympiad 2022"]
[Site "Nakhchivan"]
[Date "2022.10.03"]
[Round "2.20"]
[White "Aydin, Gulenay"]
[Black "Khuslen, Erdenebayar"]
[Result "1-0"]
[ECO "B23"]
[WhiteElo "2109"]
[BlackElo "1439"]
[Annotator "TA"]
[PlyCount "51"]
[EventDate "2022.10.02"]
[EventType "team-tourn"]
[EventCountry "AZE"]
[SourceTitle "playchess.com"]
[Source "ChessBase"]
[SourceQuality "1"]
[WhiteTeam "Turkey"]
[BlackTeam "Mongolia"]
[WhiteTeamCountry "TUR"]
[BlackTeamCountry "MGL"]
[TimeControl "40/5400+30:1800+30"]

{[%evp 10,51,32,-6,35,39,38,35,37,35,49,29,67,58,66,66,65,56,85,102,95,107,100,84,129,6,15,11,13,8,10,25,15,9,97,95,608,584,575,41,577,556,29986,29987]} 1. e4 {[%emt 0:00:02]} c5 {[%emt 0:00:14]} 2. Nc3 {[%emt 0:00:09]} e6 {[%emt 0:01:12]} 3. g3 {[%emt 0:00:30]} d5 {[%emt 0:01:19]} 4. exd5 {[%emt 0:00:22]} exd5 {[%emt 0:00:07]} 5. d4 {[%emt 0:00:11]} Nf6 {[%emt 0:04:06]} 6. Bg5 {[%emt 0:01:37]} Be6 {[%emt 0:01:45] B23: Closed Sicilian: Lines without g3.} (6... cxd4 {is more complex.} 7. Bb5+ Nc6 8. Qxd4 Be7) 7. Nge2 {[%emt 0:05:46]} Nc6 {[%emt 0:11:27]} 8. Bg2 {[%emt 0:01:37]} cxd4 {[%emt 0:00:54] White is slightly better.} 9. Nxd4 {[%emt 0:01:11]} Bb4 {[%emt 0:04:08]} 10. O-O {[%emt 0:02:43]} Bxc3 {[%emt 0:00:29]} 11. bxc3 {[%emt 0:00:03]} O-O {[%emt 0:00:32]} 12. Rb1 {[%emt 0:05:57]} Nxd4 {[%emt 0:15:19]} 13. Qxd4 {[%emt 0:13:17]} b6 {[%emt 0:01:30] [#]} 14. c4 $146 {[%emt 0:18:12]} ({Predecessor:} 14. f4 Rc8 15. f5 Rc4 16. Bxf6 gxf6 17. Qd3 Bc8 18. Bxd5 Rc7 19. Rbd1 Rd7 20. c4 {1-0 (31) Nuri,K (2322)-Malgie,A (1829) Katowice 2014}) 14... dxc4 {[%emt 0:02:04]} 15. Bxf6 {[%emt 0:02:30] White has more active pieces. The black rooks are badly placed.} gxf6 {[%emt 0:00:11]} 16. Qh4 {[%emt 0:04:52] And now Rbd1 would win.} f5 {[%emt 0:03:45] Strongly threatening ...Qxh4.} 17. Qh6 {[%emt 0:04:33]} ({White must play} 17. Bxa8 $16 Qxh4 18. gxh4 Rxa8 19. Rfd1) 17... Rc8 $11 {[%emt 0:00:53]} 18. Rbd1 {[%emt 0:04:39][%mdl 1024] White has compensation.} Qe7 {[%emt 0:03:34]} 19. Rd4 {[%emt 0:06:24] Threatens to win with Re1.} Rfd8 {[%emt 0:05:25]} (19... f6 $2 20. Re1 Rfd8 21. Bd5 $1 $18) 20. Rh4 {[%emt 0:01:13]} f6 {[%emt 0:01:44]} 21. Re1 {[%emt 0:00:50] Hoping for Bh3.} Rd6 {[%emt 0:02:22] [#]} (21... Rd7 $11 {keeps the balance.}) 22. Rxe6 $1 $40 {[%emt 0:10:14][%mdl 128] White goes for the king.} Rd1+ $2 {[%emt 0:08:25][%mdl 8192]} (22... Rxe6 $16 23. Bd5 Rcc6) 23. Bf1 $18 {[%emt 0:00:13]} Qxe6 {[%emt 0:00:06]} 24. Qxh7+ {[%emt 0:00:24]} Kf8 {[%emt 0:00:06] [#] aiming for ...Qe1.} 25. Qb7 $1 {[%emt 0:03:47] Rh8+ would kill now.} Kg8 {[%emt 0:05:44] Against Rh8+} 26. Rh7 {[%emt 0:00:35] Weighted Error Value: White=0.10 (very precise) /Black=0.65} 1-0

[Event "FIDE WY-U16 Olympiad 2022"]
[Site "Nakhchivan"]
[Date "2022.10.03"]
[Round "2.21"]
[White "Sapenov, Daniyal"]
[Black "Baranciuc, Alexandr"]
[Result "1/2-1/2"]
[ECO "D02"]
[WhiteElo "2276"]
[BlackElo "2184"]
[Annotator "NA RC"]
[PlyCount "66"]
[EventDate "2022.10.02"]
[EventType "team-tourn"]
[EventCountry "AZE"]
[SourceTitle "playchess.com"]
[Source "ChessBase"]
[SourceQuality "1"]
[WhiteTeam "Kazakhstan"]
[BlackTeam "Moldova"]
[WhiteTeamCountry "KAZ"]
[BlackTeamCountry "MDA"]
[TimeControl "40/5400+30:1800+30"]

1. d4 {[%emt 0:00:04]} d5 {[%emt 0:00:31]} 2. Nf3 {[%emt 0:00:13]} Nf6 {[%emt 0:00:14]} 3. c4 {[%emt 0:00:21]} e6 {[%emt 0:00:46]} 4. g3 {[%emt 0:00:06]} Bb4+ {[%emt 0:00:53]} 5. Bd2 {[%emt 0:00:43]} a5 {[%emt 0:00:37]} 6. Bg2 {[%emt 0:00:55]} O-O {[%emt 0:00:22]} 7. O-O {[%emt 0:02:55]} dxc4 {[%emt 0:00:37]} 8. e3 {[%emt 0:01:33]} b5 {[%emt 0:07:07]} 9. a4 {[%emt 0:01:21]} Bb7 {[%emt 0:16:06]} 10. axb5 {[%emt 0:01:05]} Nbd7 {[%emt 0:02:24]} 11. Na3 {[%emt 0:03:07]} Nb6 {[%emt 0:03:19]} 12. Qe2 {[%emt 0:06:01]} Qe8 {[%emt 0:23:26]} 13. Bxb4 {[%emt 0:21:02]} axb4 {[%emt 0:00:02]} 14. Nxc4 {[%emt 0:00:13]} Qxb5 {[%emt 0:00:34]} 15. Nfe5 {[%emt 0:02:44]} Bd5 {[%emt 0:03:11]} 16. b3 {[%emt 0:01:53]} Bxg2 {[%emt 0:03:50]} 17. Kxg2 {[%emt 0:00:09]} Nfd5 {[%emt 0:01:39]} 18. Qf3 {[%emt 0:11:01]} f6 {[%emt 0:03:27]} 19. Rxa8 {[%emt 0:00:52]} Rxa8 {[%emt 0:01:55]} 20. Nxb6 {[%emt 0:01:48]} cxb6 {[%emt 0:07:47]} 21. Nc4 {[%emt 0:00:43]} Qc6 {[%emt 0:01:20]} 22. e4 {[%emt 0:06:13]} Nc3 {[%emt 0:00:09]} 23. d5 {[%emt 0:00:10]} exd5 {[%emt 0:01:31]} 24. exd5 {[%emt 0:00:06]} Qxd5 {[%emt 0:00:46]} 25. Qxd5+ {[%emt 0:00:39]} Nxd5 {[%emt 0:00:02]} 26. Rd1 {[%emt 0:00:08]} b5 {[%emt 0:06:37]} 27. Nd6 {[%emt 0:03:17]} Nc3 {[%emt 0:06:45]} 28. Rd4 {[%emt 0:00:38]} Ra6 {[%emt 0:00:09]} 29. Nf5 {[%emt 0:02:30]} g6 {[%emt 0:02:03]} 30. Ne3 {[%emt 0:01:27]} Na2 {[%emt 0:00:14]} 31. Rd7 {[%emt 0:02:31]} Nc1 {[%emt 0:01:33]} 32. Rb7 {[%emt 0:00:13]} Nxb3 {[%emt 0:00:57]} 33. Rxb5 {[%emt 0:00:07]} Kf7 {[%emt 0:02:22]} 1/2-1/2

[Event "FIDE WY-U16 Olympiad 2022"]
[Site "Nakhchivan"]
[Date "2022.10.03"]
[Round "2.21"]
[White "Baghirov, Orkhan"]
[Black "Chen, Max"]
[Result "1/2-1/2"]
[ECO "D72"]
[WhiteElo "1662"]
[BlackElo "2104"]
[Annotator "TA"]
[PlyCount "93"]
[EventDate "2022.10.02"]
[EventType "team-tourn"]
[EventCountry "AZE"]
[TimeControl "40/5400+30:1800+30"]

{[%evp 19,93,38,48,37,111,85,120,109,144,132,167,118,191,134,143,95,127,120,124,58,254,118,127,118,140,139,140,105,125,92,79,83,75,84,160,59,213,204,230,160,160,-43,-49,-50,-31,-50,-56,-32,0,0,1062,1030,797,14,70,72,66,69,232,50,184,0,16,0,0,0,0,0,0,0,0,0,0,0,0,0]} 1. d4 {[%emt 0:00:04]} Nf6 {[%emt 0:00:04]} 2. c4 {[%emt 0:00:05]} g6 {[%emt 0:00:04]} 3. g3 {[%emt 0:00:05]} Bg7 {[%emt 0:00:08]} 4. Bg2 {[%emt 0:00:05]} d5 {[%emt 0:00:29]} 5. cxd5 {[%emt 0:01:31]} Nxd5 {[%emt 0:00:07]} 6. e4 {[%emt 0:00:57]} Nb6 {[%emt 0:00:36]} 7. Ne2 {[%emt 0:00:13]} O-O {[%emt 0:00:36]} 8. O-O {[%emt 0:03:40]} Nc6 {[%emt 0:05:56]} 9. d5 {[%emt 0:02:48]} Na5 {[%emt 0:01:13]} 10. Nbc3 {[%emt 0:04:56]} c6 {[%emt 0:07:40]} 11. b3 {[%emt 0:11:42] D72: Fianchetto Grünfeld: 5 cxd5 Nxd5 6 e4 Nb6 (without Nf3).} Nd7 {[%emt 0:21:30] [#]} (11... f5 $14) 12. Bb2 $146 {[%emt 0:07:10]} ({Predecessor:} 12. Bg5 h6 13. Bf4 c5 14. Rc1 b6 15. a3 g5 16. Be3 Ne5 17. f4 Ng4 18. Bd2 gxf4 19. gxf4 {½-½ (95) Mohota,N (2311)-Padmini,R (2235) New Delhi 2008}) 12... Nf6 {[%emt 0:12:44]} 13. Qd2 {[%emt 0:07:21] White is better.} b6 {[%emt 0:06:32]} 14. Rfd1 {[%emt 0:06:00] aiming for dxc6.} Ba6 {[%emt 0:07:17]} 15. Rac1 {[%emt 0:11:26]} (15. e5 $18 Nxd5 16. Nxd5 cxd5 17. Bxd5) 15... Rc8 {[%emt 0:05:24]} (15... e6 $16 16. Nf4 cxd5) 16. Nd4 {[%emt 0:14:03]} (16. Bh3 $18) 16... cxd5 $16 {[%emt 0:11:37]} 17. Nxd5 {[%emt 0:02:21]} (17. exd5 $142 Qe8 18. Nc6) 17... e6 {[%emt 0:03:44]} 18. Rxc8 {[%emt 0:03:24]} Bxc8 {[%emt 0:00:05]} 19. Nb4 {[%emt 0:02:13] White has more active pieces. The black rooks are badly placed.} (19. Ne3 $16) 19... Qd7 $2 {[%emt 0:04:17]} (19... Bb7 $1 $14) 20. Qe2 {[%emt 0:02:56]} (20. e5 $18 {is the precise move to win.}) 20... Rd8 {[%emt 0:05:31]} 21. e5 {[%emt 0:03:00]} Nd5 {[%emt 0:02:27]} 22. Nxd5 {[%emt 0:05:48]} exd5 {[%emt 0:00:05]} 23. Nc2 $36 {[%emt 0:00:21][%mdl 2048] Keeping Black busy.} Bb7 {[%emt 0:01:26]} 24. f4 {[%emt 0:01:45]} Bf8 {[%emt 0:00:44][%cal Od5d4]} 25. Ne3 {[%emt 0:01:30]} Bc5 {[%emt 0:00:51]} 26. Bd4 {[%emt 0:00:39] Threatens to win with Bxc5.} Qe7 {[%emt 0:01:18]} (26... Be7 $142) 27. Qc2 {[%emt 0:02:15]} (27. Bxc5 $16 Qxc5 28. Qe1) 27... Rc8 $2 {[%emt 0:00:31]} ({Black should play} 27... Bxd4 $14 28. Rxd4 Nc6 29. Nxd5 Rxd5 30. Rxd5 Nb4) 28. Bxc5 $1 $18 {[%emt 0:01:57]} Rxc5 {[%emt 0:00:27]} 29. Qe2 {[%emt 0:00:06]} Rc3 {[%emt 0:00:41][%cal Bc5c3,Bc3b3,Bb3a3][%mdl 32]} 30. Rd4 $2 {[%emt 0:02:35]} ({Much less strong is} 30. Nxd5 Qc5+ 31. Qf2 Qxf2+ 32. Kxf2 Rc2+ 33. Kg1 Kf8 $16) (30. Bxd5 $16 {Hoping for Qd2.} Qc5 31. Kf2 (31. Bxb7 Rxe3 32. b4 Qc3 $11)) 30... Qc5 $15 {[%emt 0:00:23]} 31. Qd2 {[%emt 0:02:08] [#]} Rxb3 {[%emt 0:00:42]} 32. Kf2 {[%emt 0:00:53]} (32. Bxd5 $2 Rxe3 $1 {[%mdl 512]} 33. Qxe3 Bxd5 $19) 32... Ra3 {[%emt 0:00:41] And now ...Kf8 would win.} 33. Bxd5 {[%emt 0:00:29]} Bxd5 {[%emt 0:00:33]} (33... Rxe3 $5 34. Bxf7+ Kxf7 35. Qxe3 Qc6 $15) 34. Rxd5 {[%emt 0:00:02]} Qc6 {[%emt 0:00:25][%mdl 8192]} (34... Nc4 $11 35. Rxc5 Nxd2) 35. Rd8+ {[%emt 0:00:33]} Kg7 {[%emt 0:00:07]} 36. Rd3 $2 {[%emt 0:00:58]} ({White has to play} 36. f5 $18 {White threatens f6+ and mate.} h5 37. e6 Rxe3 38. Qd4+ f6 39. Rd7+ Kh6 40. Qxe3+ g5 41. e7 Qxd7 42. e8=Q Qxf5+ 43. Kg1 Qb1+ 44. Kg2 Qc2+ 45. Qf2 Qxf2+ 46. Kxf2) 36... Qa4 {[%emt 0:00:43]} (36... Rxd3 $11 37. Qxd3 Nb7) 37. Rxa3 $14 {[%emt 0:00:11]} Qxa3 {[%emt 0:00:04][%mdl 4096] Endgame KQN-KQN} 38. f5 $1 {[%emt 0:00:40] Strongly threatening f6+.} h5 $2 {[%emt 0:00:55] [#]} ({Better is} 38... Nc6 $14) 39. fxg6 $2 {[%emt 0:00:30]} (39. f6+ $1 $18 Kg8 40. Qd8+ Qf8 41. Qd7) 39... fxg6 {[%emt 0:00:35] [#]} ({Black should try} 39... Kxg6 $14 40. Qc2+ Kg7) 40. e6 $2 {[%emt 0:00:34]} ({White must play} 40. Qd7+ $1 $18 Kf8 41. e6 (41. Qxa7 Qxa2+ 42. Kg1 Qa1+ 43. Kg2 Qa2+ 44. Kf3 Qe6 $11) (41. Qd8+ Kg7 $16) 41... Qb2+ 42. Kf3 Qf6+ 43. Ke4) 40... Qe7 {[%emt 0:00:39] The position is equal.} 41. Qd4+ {[%emt 0:30:05]} Qf6+ {[%emt 0:30:32]} 42. Nf5+ $1 {[%emt 0:00:07]} gxf5 {[%emt 0:00:27]} 43. Qd7+ {[%emt 0:00:01]} Kf8 {[%emt 0:00:00] White must now prevent ...Qe7.} 44. Qc8+ {[%emt 0:00:00]} Ke7 {[%emt 0:00:00]} 45. Qd7+ {[%emt 0:00:00]} Kf8 {[%emt 0:00:00] ...Qe7 is the strong threat.} 46. Qc8+ {[%emt 0:00:00]} Kg7 {[%emt 0:00:00]} 47. Qd7+ {[%emt 0:00:00] Weighted Error Value: White=0.50/Black=0.43} 1/2-1/2

[Event "FIDE WY-U16 Olympiad 2022"]
[Site "Nakhchivan"]
[Date "2022.10.03"]
[Round "2.22"]
[White "Chen, Rachel Ruoxuan"]
[Black "Isfandiyarli, Kamal"]
[Result "1/2-1/2"]
[ECO "B27"]
[WhiteElo "1783"]
[BlackElo "1585"]
[Annotator "COMBH"]
[PlyCount "65"]
[EventDate "2022.10.02"]
[EventType "team-tourn"]
[EventCountry "AZE"]
[TimeControl "40/5400+30:1800+30"]

1. e4 {[%emt 0:00:05]} c5 {[%emt 0:00:47]} 2. Nf3 {[%emt 0:00:03]} g6 {[%emt 0:00:33]} 3. d4 {[%emt 0:00:04]} cxd4 {[%emt 0:00:09]} 4. Qxd4 {[%emt 0:00:19]} Nf6 {[%emt 0:02:10]} 5. Nc3 {[%emt 0:00:08]} Nc6 {[%emt 0:03:14]} 6. Qa4 {[%emt 0:00:10]} d6 {[%emt 0:03:07]} 7. e5 {[%emt 0:01:36]} dxe5 {[%emt 0:00:54]} 8. Nxe5 {[%emt 0:00:13]} Bd7 {[%emt 0:00:54]} 9. Nxd7 {[%emt 0:04:00]} Qxd7 {[%emt 0:06:20]} 10. Bf4 {[%emt 0:06:42]} Bg7 {[%emt 0:02:01]} 11. Bc4 {[%emt 0:06:44]} Nh5 {[%emt 0:24:14]} 12. Be3 {[%emt 0:23:04]} O-O {[%emt 0:08:56]} 13. Rd1 {[%emt 0:04:38]} Bxc3+ {[%emt 0:01:02]} 14. bxc3 {[%emt 0:00:20]} Qc7 {[%emt 0:01:22]} 15. O-O {[%emt 0:10:25]} Nf6 {[%emt 0:08:59]} 16. Bf4 {[%emt 0:07:19]} Qa5 {[%emt 0:00:51]} 17. Qb3 {[%emt 0:04:50]} Qf5 {[%emt 0:04:04]} 18. Bh6 {[%emt 0:01:37]} Na5 {[%emt 0:00:42]} 19. Qb4 {[%emt 0:04:12]} Rfc8 {[%emt 0:05:18]} 20. Bb5 {[%emt 0:02:58]} a6 {[%emt 0:08:05]} 21. Bd3 {[%emt 0:04:59]} Qh5 {[%emt 0:00:24]} 22. Qxe7 {[%emt 0:02:49]} Qxh6 {[%emt 0:02:42]} 23. Qxf6 {[%emt 0:00:07]} Qg7 {[%emt 0:00:03]} 24. Qd4 {[%emt 0:06:22]} Rxc3 {[%emt 0:06:58]} 25. Qb4 {[%emt 0:00:56]} Qe5 {[%emt 0:00:10]} 26. Rfe1 {[%emt 0:02:45]} Qc5 {[%emt 0:00:11]} 27. Qxc5 {[%emt 0:00:50]} Rxc5 {[%emt 0:00:01]} 28. Rb1 {[%emt 0:01:25]} Rc7 {[%emt 0:02:33]} 29. g3 {[%emt 0:01:56]} Rd8 {[%emt 0:00:22]} 30. Rb6 {[%emt 0:01:41]} Rd4 {[%emt 0:00:32]} 31. Re4 {[%emt 0:00:48]} Rcd7 {[%emt 0:01:31]} 32. Kg2 {[%emt 0:01:05]} Kg7 {[%emt 0:02:40]} 33. Kf3 {[%emt 0:00:44]} 1/2-1/2

[Event "FIDE WY-U16 Olympiad 2022"]
[Site "Nakhchivan"]
[Date "2022.10.03"]
[Round "2.23"]
[White "Nurmanova, Alua"]
[Black "Bargan, Victoria"]
[Result "1-0"]
[ECO "B12"]
[WhiteElo "2188"]
[BlackElo "1720"]
[Annotator "TA"]
[PlyCount "41"]
[EventDate "2022.10.02"]
[EventType "team-tourn"]
[EventCountry "AZE"]
[SourceTitle "playchess.com"]
[Source "ChessBase"]
[SourceQuality "1"]
[WhiteTeam "Kazakhstan"]
[BlackTeam "Moldova"]
[WhiteTeamCountry "KAZ"]
[BlackTeamCountry "MDA"]
[TimeControl "40/5400+30:1800+30"]

{[%evp 11,41,10,8,-18,-12,-14,-16,-16,-12,-12,10,29,36,27,42,33,456,363,488,412,508,450,347,279,397,293,880,872,2289,2217,1987,1972]} 1. e4 {[%emt 0:00:02]} c6 {[%emt 0:00:01]} 2. d4 {[%emt 0:00:08]} d5 {[%emt 0:00:02]} 3. e5 {[%emt 0:00:05]} Bf5 {[%emt 0:00:03]} 4. h4 {[%emt 0:00:09]} h5 {[%emt 0:00:05]} 5. Bd3 {[%emt 0:00:09]} Bxd3 {[%emt 0:00:05]} 6. Qxd3 {[%emt 0:00:05]} e6 {[%emt 0:00:03]} 7. Bg5 {[%emt 0:00:07] B12: Caro-Kann: Advance Variation.} Qb6 {[%emt 0:01:34]} 8. Nd2 {[%emt 0:00:09] Active counter play!} c5 {[%emt 0:01:24]} 9. c4 {[%emt 0:01:01][%cal Bc2c4,Bc4d5,Bd5d6][%mdl 32] The position is equal.} Qxb2 {[%emt 0:01:27]} 10. Rd1 {[%emt 0:00:44] [#] cxd5 is the strong threat.} (10. Rb1 $5 {[%cal Rb1b2]} Qxd4 11. Qxd4 cxd4 12. Ngf3 $11) 10... Qxd4 {[%emt 0:23:43]} 11. Qb3 {[%emt 0:03:03] Black must now prevent Ngf3.} Qxe5+ {[%emt 0:06:35]} 12. Ne2 $1 {[%emt 0:00:33][%cal Bg1e2,Be2c3,Bc3b5][%mdl 32]} Qc7 {[%emt 0:04:07] Hoping for ...d4.} 13. cxd5 {[%emt 0:01:23]} e5 {[%emt 0:20:31][%mdl 8192] [#] A mistake that costs the game.} (13... exd5 $14 14. Qxd5 Nd7) 14. Nc3 $146 {[%emt 0:22:36]} ({Predecessor:} 14. Nc4 Nd7 15. Nc3 a6 16. d6 Qc6 17. Nd5 Rc8 18. Na5 {1-0 (18) Djukic,N (2552)-Kalezic,B (2450) Podgorica 2019}) 14... f6 {[%emt 0:10:37]} 15. d6 {[%emt 0:23:03]} Qd7 {[%emt 0:00:37]} 16. Nb5 {[%emt 0:15:02] Threatens to win with Nc7+.} Na6 {[%emt 0:05:37] Prevents Nc7+.} 17. Be3 {[%emt 0:01:15][%cal Bg5e3,Be3c5,Bc5a7][%mdl 32]} O-O-O {[%emt 0:06:20]} (17... Nh6 {was called for.} 18. Ne4 Nf7) 18. Qa4 {[%emt 0:07:48] aiming for Nc4.} Kb8 $2 {[%emt 0:04:12] [#]} (18... Bxd6 $2 19. Ne4 Qg4 20. Rxd6 $18) (18... Ne7 19. dxe7 Bxe7) 19. Bxc5 $1 $18 {[%emt 0:00:36][%mdl 512] White is clearly winning.} Nh6 {[%emt 0:02:21]} (19... Ne7 20. Bxa7+) 20. Bxa7+ {[%emt 0:00:15]} Ka8 {[%emt 0:00:09]} 21. Nc4 {[%emt 0:00:13] Weighted Error Value: White=0.39/Black=0.70} 1-0